Cogmind - Beta 13 @@@ ROGUE MODE // 2024.05.27 @ 09:00:05 Player: Bace Troncons Result: Destroyed by LT-DZ4(R) with Subdweller Laser Performance ------------- Evolutions (0) 0 Regions Visited (2) 400 Robots Destroyed (25) 125 Value Destroyed (727) 727 Prototype IDs (12) 240 Alien Tech Used (0) 0 Bonus (0) 0 TOTAL SCORE: 1492 Bonus ------- None Cogmind --------- Core Integrity 0/250 Matter 234/300 Energy 248/250 System Corruption 0% Temperature Cool (6) Movement Treading (160) Location -10/Subcaves Parts ------- > --- POWER (1) -------- Ion Engine > --- PROPULSION (2) --- Light Treads Light Treads > --- UTILITY (2) ------ Terrain Scanner Makeshift Light Armor Plating > --- WEAPON (2) ------- Barrage Gun Barrage Gun > --- INVENTORY (5) ---- Arachnoskeleton Subdweller Shrapnel Launcher Makeshift Hammer Peak State ------------ > --- POWER ------------ Ion Engine > --- PROPULSION ------- Light Treads Light Treads > --- UTILITY ---------- Makeshift Light Armor Plating Hacking Suite > --- WEAPON ----------- Barrage Gun Makeshift Hammer > --- INVENTORY -------- Signal Interpreter Terrain Scanner Grenade Launcher Datajack [Rating: 17] Favorites ----------- Power Ion Engine Engine Ion Engine Propulsion Light Treads Treads Light Treads Utility Makeshift Light Armor Plating Device Terrain Scanner Storage High-capacity Storage Unit Hackware Hacking Suite Protection Makeshift Light Armor Plating Weapon Barrage Gun Energy Gun EM Pulse Gun Ballistic Gun Barrage Gun Launcher Grenade Launcher Impact Weapon Makeshift Hammer Special Melee Weapon Datajack Build | -11 -10 -10 ------- Run | Yrd Mat Sub Slots Evolved . | . . . Power . | . . . Propulsion . | . . . Utility . | . . . Weapon . | . . . Parts Attached 24 | 6 5 13 Power 1 | 1 . . Engine 1 | 1 . . Core . | . . . Reactor . | . . . Propulsion 4 | 2 . 2 Treads 4 | 2 . 2 Leg . | . . . Wheel . | . . . Hover . | . . . Flight . | . . . Utility 9 | 1 3 5 Device 1 | . . 1 Storage 3 | 1 2 . Processor . | . . . Hackware 1 | . . 1 Protection 4 | . 1 3 Artifact . | . . . Weapon 10 | 2 2 6 Energy Gun 3 | 2 . 1 Energy Cannon . | . . . Ballistic Gun 3 | . . 3 Ballistic Cannon . | . . . Launcher 2 | . 1 1 Special Weapon . | . . . Impact Weapon 1 | . . 1 Slashing Weapon . | . . . Piercing Weapon . | . . . Special Melee Weapon 1 | . 1 . Unidentified Prototypes . | . . . Parts Lost 8 | . 2 6 Power . | . . . Propulsion 2 | . . 2 Utility 2 | . . 2 Weapon 4 | . 2 2 Highest Loss Streak 4 | . 1 4 To Critical Strikes . | . . . Average Slot Usage (%) 96 | . 92 98 Engine 14 | . 14 14 Treads 27 | . 28 27 Device 8 | . . 11 Storage 5 | . 14 1 Protection 13 | . 13 13 Energy Gun 4 | . 13 1 Ballistic Gun 14 | . . 19 Launcher 2 | . 3 2 Impact Weapon 2 | . . 3 Special Melee Weapon 1 | . 3 . Naked Turns . | . . . Heaviest Build 53 | 14 52 53 Greatest Support 40 | 40 40 40 Greatest Overweight (x) 2 | . 1 2 Average Overweight (x) . | . . . Largest Inventory Capacity 20 | 8 20 20 Average Capacity 9 | 7 16 7 Most Carried 14 | 3 13 14 Average Carried 7 | 2 10 6 Final Capacity 20 | 8 20 5 Final Carried 13 | 3 13 5 Class Distribution -------------------- 100% | Mutant Dominant Class ---------------- Mutant | -10/Materials Mutant | -10/Subcaves Resources | -11 -10 -10 ----------- Run | Yrd Mat Sub Matter Collected 792 | 222 63 507 Remotely . | . . . Salvage Created 802 | . 402 400 Parts 45 | . 25 20 Haulers Intercepted 1 | . 1 . Recyclers Shooed . | . . . Parts Field Recycled . | . . . Retrieved Matter . | . . . Parts Self-Destructed 11 | . . 11 Prevented . | . . . Kills | -11 -10 -10 ------- Run | Yrd Mat Sub Combat Hostiles Destroyed 19 | . 7 12 Guns 10 | . 2 8 AOE 6 | . 4 2 Classes Destroyed 8 | . 7 1 Worker 1 | . 1 . Hauler 1 | . 1 . Recycler 1 | . 1 . Operator 2 | . 2 . Watcher 1 | . 1 . Swarmer 3 | . 3 . Grunt 6 | . 4 2 Subdweller 10 | . . 10 Best Kill Streak 5 | . 5 2 Combat Bots Only 3 | . 3 2 Max Kills in Single Turn 2 | . 2 1 Gunslinging . | . . . Exploded 2 | . 2 1 Melee . | . . . Uniques/NPCs Destroyed . | . . . Combat | -11 -10 -10 -------- Run | Yrd Mat Sub Hostile Shots Fired 104 | . 47 57 Missed 32 | . 16 16 Damage Taken 1541 | . 415 1126 Core 264 | . 96 168 Absorbed by Shields . | . . . Core Remaining (%) 100 | 100 . . Volleys Fired 82 | . 29 53 Largest 2 | . 2 2 Hottest 80 | . 80 68 Shots Fired 133 | . 45 88 Gun 113 | . 41 72 Cannon . | . . . Launcher 20 | . 4 16 Special . | . . . Kinetic 65 | . . 65 Thermal 10 | . . 10 Explosive 17 | . 4 13 Electromagnetic 41 | . 41 . Robot Hit Streak 16 | . 9 16 Robot Miss Streak 3 | . 3 2 Penetration Max . | . . . Secondary Targets 1 | . . 1 Max Gunslinging Chain 1 | . . 1 Shots Hit Robots 80 | . 28 52 Core Hits 36 | . 17 19 Critical Kills . | . . . Critical Parts Destroyed 2 | . . 2 Critical Strikes 3 | . . 3 Smash 3 | . . 3 Melee Attacks 7 | . . 7 Impact 7 | . . 7 Slashing . | . . . Piercing . | . . . Sneak Attacks . | . . . Combat Hostiles . | . . . Follow-up Attacks . | . . . Damage Inflicted 2105 | . 798 1307 Guns 884 | . 387 497 Cannons . | . . . Explosions 905 | . 411 494 Melee 316 | . . 316 Ramming . | . . . Kinetic 525 | . . 525 Thermal 189 | . 90 99 Explosive 688 | . 321 367 Electromagnetic 387 | . 387 . Impact 316 | . . 316 Slashing . | . . . Piercing . | . . . Highest Corruption . | . . . Average Corruption . | . . . Corruption Purged . | . . . Corruption Blocked . | . . . Overload Shots . | . . . Overflow Damage 209 | . 57 152 Projectiles . | . . . Explosions 106 | . 57 49 Melee 103 | . . 103 Knockbacks 2 | . . 2 Impact 2 | . . 2 Kinetic . | . . . Secondary . | . . . Self-Inflicted Damage 99 | . 69 30 Shots 4 | . 2 2 Rammed . | . . . Targets Rammed . | . . . Kicked . | . . . Crushed . | . . . Highest Temperature 272 | . 252 272 Average Temperature 86 | . 88 72 Received Heat Transfer 750 | . 141 609 Siege Activations . | . . . Robots Corrupted 1 | . 1 . Combat Hostiles 1 | . 1 . Parts Fried 3 | . 1 2 Impact Corruptions 4 | . . 4 Robots Melted . | . . . Combat Hostiles . | . . . Parts Melted 3 | . . 3 Heat Transferred 325 | . 100 225 Parts Sabotaged . | . . . Parts Stolen . | . . . Parts Stripped . | . . . Power Chain Reactions 3 | . 3 . Alert | -11 -10 -10 ------- Run | Yrd Mat Sub Peak Influence 125 | . 125 . Initial . | . . . Average 38 | . 40 . Maximum Alert Level . | . . . Low Security (%) 100 | 100 100 . Level 1 . | . . . Level 2 . | . . . Level 3 . | . . . Level 4 . | . . . Level 5 . | . . . High Security . | . . . Max Security . | . . . Squads Dispatched 2 | . 2 . Investigation 1 | . 1 . Extermination . | . . . Reinforcement 1 | . 1 . Assault . | . . . Garrison . | . . . Intercept . | . . . Searches Triggered . | . . . Construction Impeded . | . . . Haulers Reinforced . | . . . Active Scanning Responses . | . . . Cargo Convoy Interrupts . | . . . Stealth | -11 -10 -10 --------- Run | Yrd Mat Sub Distress Signals 2 | . 2 . Communications Jammed . | . . . Distress Signals . | . . . Times Spotted 36 | . 21 15 Peak Tracking Total 4 | . 4 2 Tactical Retreats 1 | . 1 . Traps | -11 -10 -10 ------- Run | Yrd Mat Sub Traps Triggered 4 | . 1 3 Indirectly . | . . . Trap Hack Attempts . | . . . Triggered . | . . . Disarmed . | . . . Reprogrammed . | . . . Reused . | . . . Traps Extracted . | . . . Installed . | . . . Triggered . | . . . Machines | -11 -10 -10 ---------- Run | Yrd Mat Sub Machines Disabled 2 | . 1 1 Max in Single Turn 1 | . 1 1 Machines Repaired . | . . . Machines Dismantled . | . . . Machines Sabotaged . | . . . Overloaded Fab Kills . | . . . Hacking | -11 -10 -10 --------- Run | Yrd Mat Sub Machines Accessed 5 | . 4 1 Terminals 4 | . 4 . Fabricators . | . . . Repair Stations . | . . . Recycling Units . | . . . Scanalyzers . | . . . Garrison Access . | . . . Total Hacks 8 | . 7 1 Successful 5 | . 4 1 Failed 3 | . 3 . Catastrophic . | . . . Database Lockouts . | . . . Manual 1 | . 1 . Terminals 7 | . 7 . Fabricators . | . . . Repair Stations . | . . . Recycling Units . | . . . Scanalyzers . | . . . Garrison Access . | . . . Terminal Hacks 5 | . 4 1 Prototype ID Bank 1 | . 1 . Transport Status 1 | . 1 . Zone Layout 2 | . 2 . Derelict Proto ID Bank 1 | . . 1 Fabricator Hacks . | . . . Repair Station Hacks . | . . . Recycling Unit Hacks . | . . . Scanalyzer . | . . . Garrison Access Hacks . | . . . Unauthorized Hacks . | . . . Terminals . | . . . Fabricators . | . . . Repair Stations . | . . . Recycling Units . | . . . Scanalyzers . | . . . Garrison Access . | . . . Data Cores Recovered 1 | . 1 . Used . | . . . Hacking Detections 3 | . 3 . Full Trace Events . | . . . Feedback Events . | . . . Feedback Blocked . | . . . Robot Schematics Acquired . | . . . Robots Built . | . . . Authchips . | . . . Time . | . . . Total Robot Build Rating . | . . . Part Schematics Acquired . | . . . Parts Built . | . . . Authchips . | . . . Time . | . . . Total Part Build Rating . | . . . Parts Repaired . | . . . Time . | . . . Parts Recycled . | . . . Recycled Matter . | . . . Retrieved Matter . | . . . Retrieved Components . | . . . Parts Scanalyzed . | . . . Part Schematics Acquired . | . . . Parts Damaged . | . . . Bothacking | -11 -10 -10 ------------ Run | Yrd Mat Sub Used RIF Installer . | . . . Robots Hacked . | . . . Non-combat . | . . . Combat . | . . . Robot Hacks Applied . | . . . Relay Couplers Released . | . . . Fabnet Peak Effective % . | . . . Robots Rewired . | . . . Allies Hacked . | . . . Hacks Repelled . | . . . Allies | -11 -10 -10 -------- Run | Yrd Mat Sub Total Allies . | . . . Largest Group . | . . . Highest-Rated Group . | . . . Highest-Rated Ally . | . . . Total Orders . | . . . Ally Attacks . | . . . Total Damage . | . . . Kills . | . . . Allies Corrupted . | . . . Allies Melted . | . . . Intel | -11 -10 -10 ------- Run | Yrd Mat Sub Robot Analysis Total . | . . . Derelict Logs Recovered . | . . . Drone Launches . | . . . Drone Recoveries . | . . . Exploration | -11 -10 -10 ------------- Run | Yrd Mat Sub Turns Passed 5865 | 87 1564 4214 Spaces Moved 1347 | 48 496 803 Core 1 | 1 . . Treads 1346 | 47 496 803 Legs . | . . . Wheels . | . . . Hover . | . . . Flight . | . . . Fastest Speed 50 | 50 160 160 Average Speed 189 | 157 204 182 Slowest Speed 320 | 160 240 320 Overloaded Moves . | . . . Propulsion Burnouts . | . . . Robots Hopped . | . . . Cave-ins Triggered . | . . . Exploration Rate (%) 44 | 4 83 45 Regions Visited 2 Branch Regions 1 Pre-discovered Areas . | . . . Known Exits Taken . | . . . Unknown Exits Taken 2 | 1 1 . Scrap Searched 13 | . . 13 Spaces Dug 36 | . . 36 Terrain Destroyed 175 | . 44 131 Melee . | . . . Projectile 1 | . . 1 AOE 174 | . 44 130 Terrain Rammed . | . . . Walls Destroyed . | . . . Machines Disabled . | . . . Actions | -11 -10 -10 --------- Run | Yrd Mat Sub Total 4522 | 56 1000 3466 Wait 3023 | . 455 2568 Move 1345 | 47 495 803 Hop . | . . . Pick Up 27 | 3 13 11 Fast Attach 11 | 6 1 4 Attach 6 | . 2 4 Detach . | . . . Swap 7 | . 2 5 Drop 13 | . 3 10 Fire 82 | . 29 53 Melee 7 | . . 7 Ram . | . . . Kick . | . . . Crush . | . . . Escape Stasis . | . . . Rewire . | . . . Trap . | . . . Miscellaneous 1 | . . 1 Route ------- -11/Scrapyard -10/Materials (discovered 5 exits: [*Mat x3] / [*Min] / *Sub) -10/Subcaves (discovered 1 exit: [*Mat]) History --------- Turn | Location | Event 23 | -11/Scrapyard | Discovered new exit (range 15) 88 | -11/Scrapyard | Entered Materials 309 | -10/Materials | Build established: Mutant 328 | -10/Materials | Discovered new exit (range 15) 403 | -10/Materials | Discovered new exit (range 7) 759 | -10/Materials | Discovered new exit (range 15) 1179 | -10/Materials | Discovered new exit (range 16) 1616 | -10/Materials | Discovered new exit (range 8) 1652 | -10/Materials | Entered Subcaves 1776 | -10/Subcaves | Ambushed by Subdweller buried in earth 1875 | -10/Subcaves | A swath of the cavern ceiling suddenly collapsed 1933 | -10/Subcaves | Core integrity fell below 50% 1941 | -10/Subcaves | Core integrity fell below 20% 2309 | -10/Subcaves | Lost 4 parts (1n1u2w) 3100 | -10/Subcaves | Discovered new exit (range 10) 3151 | -10/Subcaves | Disturbed a concealed Subdweller 5660 | -10/Subcaves | Visited 4L-MR0's lab 5691 | -10/Subcaves | Found Arachnoskeleton 5866 | -10/Subcaves | Destroyed by LT-DZ4(R) with Subdweller Laser Last Messages --------------- last prototype ended up, probably tossed aside somewhere as if it were useless junk..." 05686_ Connecting with 4L-MR0's Prototype Logs... 05686_ Current location identified: Subcaves >>Derelict Proto ID Bank Downloading prototype IDs... Meta Core Arachnoskeleton Cargo Legs Tripod Weapons Platform Flightbrick Gun Armor Power Bank Rainbow Chip VL-GR5's Exoskeleton "Deathgrip" Powered Cannon 05689_ Dropped Mak. Light Armor Plating. 05690_ Dropped Battle Cannon. 05691_ Acquired Arachnoskeleton. Map ----- +----------------------------------------------------+ | | | | | ????????????????????????????????????????????????? | | ????????????????????????????????????????????????? | | ????????????????????????????????????????????????? | | ????????????????????????????????????????????????? | | ????????????????????????????????????????????????? | | ????????????????????????????????????????????????? | | ????????????????????????????????????????????????? | | ????????????????????????????????????????????????? | | ????????????????????????????????????????????????? | | ????????????????????????????????????????????????? | | ????????????????????#???????????????????????????? | | ???????????????????#??????#?????????????????????? | | ????????????????#??????#?#$?????????????????????? | | ?????????????????#??????? ??#?#????????????????? | | ????????????????????#????&#?????????????????????? | | ????????????????????#?### $???? ????????????????? | | ?????????????##?#?????# # #?????????????????????? | | ????????????#??#?????## " "?????? ??????????????? | | ?????????????#??????## ?????????????????????? | | ??????????????????### ??????????????????????? | | ????????????#?????## ?????#??? ??#??????????? | | ??????????????##### #?# ???? ??????????????? | | ?????????????#?## R##? ???#????????????????? | | ????????????#??# @#? ?#??????????????????? | | ??????????#?#### ### #??????????????????? | | ??????????#??## ### ????? ????#??????????? | | ?????????#?#??## #?#? ??????????????????? | | ?????????###??### ####??? ???????????????? | | ?????????#?##?### #?#?### ????#??????????? | | ???????#??#??### # ###??#?? ??????????????? | | ?????????#####?## ###= #######? ??????????????? | | ???????#??####?##### #######?# ???????????????? | | ???????####????##?####& ##?#?###? ??????????????? | | ???????#????##?###### #########??#???? #???????? | | ????????##??#?### # ###???#####?##?? #???????? | | ???????##?#??#?## ####?########???? #????????? | | ???????#?##??### ###?### ?###?? ##????????? | | ?????????###?### ##? #?? ###### ##?##????? | | ????##?##???#??## #?###?? # ###???#???? | | ???#?????#??#?## #??## ##? " # ##?###???? | | ???#######?##??# ###?####### " #???###???? | | ???# #""#??#??## ##### ## " #?????#?#??# | | ???#!#""####### "#?######????## | | ??##]]""#######" """ "" "###???#???#?#?? | | ???# X"### # " """""##### "##?#?#??###????? | | ???# ""#?# """###### ""##?###?#?#?#???? | | ???#" "#?# "###""" """ ##?#?#??????#?# | | ???#" "### #" ###"" """""##??#??#?##???# | +----------------------------------------------------+ Best States ------------- Heat Dissipation 25 Energy Generation 10 Energy Capacity 250 Matter Stores 300 Matter Capacity 300 Sight Range 16 Terrain Scan Range 14 Terrain Scan Density 10 Armor Coverage 800 Evasion (%) 40 Recoil Reduction 2 Offensive Hacking 10 Item Schematics ----------------- None Robot Schematics ------------------ None Fabricated ------------ Nothing Alien Tech Used ----------------- None Achievements -------------- None Challenges ------------ None Game ------ Seed ScatterLaserKatana Manual? 0 Play Time 00:18:11 Cumulative 85.8 hours Start 2024.05.27 @ 08:42:14 End 2024.05.27 @ 09:00:05 Sessions 1 Manual Loads 0 Difficulty Rogue Special Mode None Game No. 138 Rogue 138 Adventurer 0 Explorer 0 Win Type - Total 1 Types 1/0/0/0/0/0/0/0/0 Lore% 40 Gallery% 44 Achievement% 32 Wizard Run 0 Options --------- Layout 1 ASCII 0 Keyboard 1 Movement Numpad Keybinds 0 Fullscreen 1 Font 24/Smallcaps Map View 50x35 Zoom Use 0% Tactical HUD 1 Map Filters NONE Filters NONE Steam 1 RUN: ddea3bb0-f77a-41d3-a0ce-c1e7dc92ab34